[Event "32nd Panamerican Youth 2022"]
[Site "Montevideo"]
[Date "2022.07.02"]
[Round "9.32"]
[White "Yepez Montenegro, Gloria Luz"]
[Black "Perez Hernandez, Vicmary C."]
[Result "0-1"]
[ECO "A45"]
[WhiteElo "1539"]
[BlackElo "1862"]
[Annotator "NA RC"]
[PlyCount "68"]
[EventDate "2022.06.26"]
[EventType "swiss"]
[EventCountry "URU"]
[SourceTitle "playchess.com"]
[Source "ChessBase"]
[SourceQuality "1"]
[TimeControl "5400+30"]

1. d4 {[%emt 0:00:03]} Nf6 {[%emt 0:00:54]} 2. Bf4 {[%emt 0:00:09]} g6 {[%emt 0:00:05]} 3. Nc3 {[%emt 0:00:10]} d5 {[%emt 0:00:26]} 4. e3 {[%emt 0:01:37]} Bg7 {[%emt 0:00:36]} 5. Bd3 {[%emt 0:02:27]} O-O {[%emt 0:01:55]} 6. h4 {[%emt 0:02:24]} h5 {[%emt 0:01:02]} 7. Qd2 {[%emt 0:01:56]} c5 {[%emt 0:00:42]} 8. dxc5 {[%emt 0:02:06]} Nbd7 {[%emt 0:00:38]} 9. Nf3 {[%emt 0:02:56]} Nxc5 {[%emt 0:00:38]} 10. O-O {[%emt 0:04:57]} b6 {[%emt 0:10:40]} 11. Qe2 {[%emt 0:13:33]} Bg4 {[%emt 0:01:43]} 12. Rad1 {[%emt 0:07:23]} Qd7 {[%emt 0:06:51]} 13. e4 {[%emt 0:07:56]} Rfd8 {[%emt 0:37:13]} 14. e5 {[%emt 0:14:19]} Ne8 {[%emt 0:00:45]} 15. Bb5 {[%emt 0:00:49]} Qf5 {[%emt 0:02:47]} 16. Qe3 {[%emt 0:04:18]} Ne6 {[%emt 0:08:01]} 17. Bxe8 {[%emt 0:06:27]} Nxf4 {[%emt 0:01:07]} 18. Bc6 {[%emt 0:03:50]} Bh6 {[%emt 0:07:38]} 19. Nd4 {[%emt 0:04:22]} Qc8 {[%emt 0:02:28]} 20. Kh2 {[%emt 0:04:39]} Bxd1 21. Bxa8 {[%emt 0:01:55]} Bxc2 {[%emt 0:06:22]} 22. Bxd5 {[%emt 0:05:44]} Nxd5 {[%emt 0:01:04]} 23. Qxh6 {[%emt 0:00:38]} Nxc3 {[%emt 0:00:46]} 24. bxc3 {[%emt 0:00:12]} Qxc3 {[%emt 0:00:42]} 25. Nf3 {[%emt 0:00:12]} Rd1 {[%emt 0:01:49]} 26. Ng5 {[%emt 0:01:20]} Qxe5+ {[%emt 0:00:05]} 27. f4 {[%emt 0:00:09]} Qg7 {[%emt 0:00:10]} 28. Qxg7+ {[%emt 0:00:46]} Kxg7 {[%emt 0:00:01]} 29. Rf2 {[%emt 0:00:10]} Bf5 {[%emt 0:02:06]} 30. Re2 {[%emt 0:00:46]} Rd7 {[%emt 0:00:24]} 31. Rb2 {[%emt 0:00:39]} Rc7 {[%emt 0:00:05]} 32. Re2 {[%emt 0:00:41]} f6 {[%emt 0:01:59]} 33. Nf3 {[%emt 0:01:00]} Bg4 {[%emt 0:01:03]} 34. Kg3 {[%emt 0:00:46]} Kf7 {[%emt 0:00:38]} 0-1

[Event "32nd Panamerican Youth 2022"]
[Site "Montevideo"]
[Date "2022.07.02"]
[Round "9.33"]
[White "Galaviz Medina, Sion Radamantys"]
[Black "Vazquez, Facundo"]
[Result "1/2-1/2"]
[ECO "E32"]
[WhiteElo "2379"]
[BlackElo "2336"]
[Annotator "TA"]
[PlyCount "44"]
[EventDate "2022.06.26"]
[EventType "swiss"]
[EventCountry "URU"]
[SourceTitle "playchess.com"]
[Source "ChessBase"]
[SourceQuality "1"]
[TimeControl "5400+30"]

{[%evp 11,44,10,11,-1,25,6,26,26,28,28,37,46,62,55,84,79,76,52,119,31,32,33,62,54,62,66,61,65,61,45,56,44,45,27,93]} 1. d4 Nf6 2. c4 e6 3. Nc3 Bb4 4. Qc2 O-O 5. a3 Bxc3+ 6. Qxc3 d5 $1 {[%mdl 4] now scores much better than the old 6...b6.} 7. e3 {E36: Nimzo-Indian: Classical: 4...d5 5 a3.} dxc4 8. Bxc4 b6 9. Ne2 {[%emt 0:14:10]} Bb7 {[%emt 0:13:57]} 10. f3 {[%emt 0:02:43]} Nbd7 {[%emt 0:08:15] [#]} 11. e4 $146 {[%emt 0:00:30]} ({Predecessor:} 11. O-O Qe7 12. e4 Rac8 13. b4 c5 14. Qb3 cxd4 15. Nxd4 Rfd8 16. Be3 Ne5 17. Be2 {0-1 (56) Lysenko,M (2107)-Zhou,G (2237) Moscow 2016}) 11... Rc8 12. b4 {[%emt 0:15:14]} Ne8 {[%emt 0:27:42]} 13. O-O {[%emt 0:00:30]} Nd6 {[%emt 0:03:07]} 14. a4 {[%emt 0:05:49]} Qe7 {[%emt 0:06:19]} (14... c5 $14 15. Bb5 a6 16. Bxd7 cxb4 17. Qxb4 Qxd7) 15. Bb2 {[%emt 0:09:49]} (15. Ba2 $16) 15... Nxc4 $14 {[%emt 0:06:32]} 16. Qxc4 {[%emt 0:03:52]} Rfd8 {[%emt 0:04:40]} 17. Rfd1 {[%emt 0:04:10]} Nf6 {[%emt 0:01:45]} 18. Nf4 {[%emt 0:00:30]} Ne8 {[%emt 0:00:30]} 19. Qc3 {[%emt 0:00:30] White is more active.} Qg5 {[%emt 0:00:30]} 20. g3 {[%emt 0:00:30]} Rd7 {[%emt 0:00:30]} 21. Rd3 {[%emt 0:00:30]} Rcd8 {[%emt 0:00:30]} 22. Rad1 {[%emt 0:00:30]} Ba6 {[%emt 0:07:22] Weighted Error Value: White=0.14 (very precise) /Black=0.13 (very precise)} (22... c6 $11) 1/2-1/2

[Event "32nd Panamerican Youth 2022"]
[Site "Montevideo"]
[Date "2022.07.02"]
[Round "9.34"]
[White "Vidyarthi, Vyom"]
[Black "Montiel, Angel Nathanael"]
[Result "1-0"]
[ECO "A45"]
[WhiteElo "2391"]
[BlackElo "1901"]
[Annotator "RC"]
[PlyCount "85"]
[EventDate "2022.06.26"]
[EventType "swiss"]
[EventCountry "URU"]
[SourceTitle "playchess.com"]
[Source "ChessBase"]
[SourceQuality "1"]
[TimeControl "5400+30"]

1. d4 {[%emt 0:00:04]} Nf6 {[%emt 0:01:42]} 2. Nc3 {[%emt 0:00:05]} d5 {[%emt 0:00:55]} 3. Bf4 {[%emt 0:00:08]} a6 {[%emt 0:00:05]} 4. e3 {[%emt 0:00:11]} Bf5 {[%emt 0:01:28]} 5. f3 {[%emt 0:00:14]} e6 {[%emt 0:01:44]} 6. g4 {[%emt 0:00:09]} Bg6 {[%emt 0:00:05]} 7. h4 {[%emt 0:00:06]} h5 {[%emt 0:00:18]} 8. g5 {[%emt 0:00:16]} Nfd7 {[%emt 0:04:06]} 9. Bd3 {[%emt 0:01:50]} Bxd3 {[%emt 0:00:14]} 10. Qxd3 {[%emt 0:00:02]} c5 {[%emt 0:01:02]} 11. g6 {[%emt 0:06:31]} f6 {[%emt 0:01:50]} 12. Bxb8 {[%emt 0:04:27]} Rxb8 {[%emt 0:10:54]} 13. Nge2 {[%emt 0:02:23]} Bd6 {[%emt 0:18:04]} 14. Kf1 {[%emt 0:24:21]} Qb6 {[%emt 0:24:26]} 15. Re1 {[%emt 0:08:24]} Rh6 {[%emt 0:05:45]} 16. b3 {[%emt 0:07:47]} f5 {[%emt 0:08:12]} 17. Nf4 {[%emt 0:11:42]} Bxf4 {[%emt 0:11:46]} 18. exf4 {[%emt 0:00:13]} Kd8 {[%emt 0:00:05]} 19. Rg1 {[%emt 0:05:04]} Kc7 {[%emt 0:06:15]} 20. dxc5 {[%emt 0:04:07]} Nxc5 {[%emt 0:00:02]} 21. Qd4 {[%emt 0:00:09]} Rg8 {[%emt 0:00:16]} 22. b4 {[%emt 0:01:10]} Nd7 {[%emt 0:01:19]} 23. Qxb6+ {[%emt 0:00:10]} Nxb6 {[%emt 0:00:09]} 24. Rxe6 {[%emt 0:00:08]} d4 {[%emt 0:00:16]} 25. Ne2 {[%emt 0:00:38]} Nd5 {[%emt 0:01:01]} 26. Nxd4 {[%emt 0:02:08]} Nxf4 {[%emt 0:00:23]} 27. Re7+ {[%emt 0:00:21]} Kb8 {[%emt 0:00:05]} 28. Nxf5 {[%emt 0:00:37]} Rxg6 {[%emt 0:00:17]} 29. Rxg6 {[%emt 0:00:26]} Nxg6 {[%emt 0:00:02]} 30. Rxg7 {[%emt 0:00:17]} Rf8 {[%emt 0:01:03]} 31. Rxg6 {[%emt 0:08:38]} Rxf5 {[%emt 0:00:01]} 32. Kg2 {[%emt 0:00:28]} Rf4 {[%emt 0:00:17]} 33. b5 {[%emt 0:00:21]} axb5 {[%emt 0:01:44]} 34. Kg3 {[%emt 0:00:05]} Rc4 {[%emt 0:00:04]} 35. Rg5 {[%emt 0:00:05]} Rxc2 {[%emt 0:00:52]} 36. Rxh5 {[%emt 0:00:37]} b4 {[%emt 0:00:46]} 37. Rb5 {[%emt 0:01:10]} Rc4 {[%emt 0:00:52]} 38. h5 {[%emt 0:00:22]} Ka7 {[%emt 0:00:27]} 39. h6 {[%emt 0:00:34]} Rc6 {[%emt 0:00:25]} 40. Rh5 {[%emt 0:00:02]} Rc8 {[%emt 0:00:06]} 41. h7 {[%emt 0:00:18]} Rh8 {[%emt 0:00:01]} 42. Kf4 {[%emt 0:00:30]} b5 {[%emt 0:00:08]} 43. Rh6 {[%emt 0:00:14]} 1-0

[Event "32nd Panamerican Youth 2022"]
[Site "Montevideo"]
[Date "2022.07.02"]
[Round "9.36"]
[White "Hernandez, Jeronimo"]
[Black "Rojas Salas, Steven"]
[Result "1/2-1/2"]
[ECO "A04"]
[WhiteElo "2141"]
[BlackElo "2193"]
[Annotator "RC"]
[PlyCount "73"]
[EventDate "2022.06.26"]
[EventType "swiss"]
[EventCountry "URU"]
[SourceTitle "playchess.com"]
[Source "ChessBase"]
[SourceQuality "1"]
[TimeControl "5400+30"]

1. Nf3 {[%emt 0:01:10]} c5 {[%emt 0:05:21]} 2. c4 {[%emt 0:02:40]} Nc6 {[%emt 0:00:14]} 3. Nc3 {[%emt 0:00:29]} e6 {[%emt 0:14:36]} 4. e3 {[%emt 0:02:52]} Nf6 {[%emt 0:01:42]} 5. d4 {[%emt 0:00:37]} d5 {[%emt 0:00:08]} 6. dxc5 {[%emt 0:06:24]} Bxc5 {[%emt 0:01:20]} 7. Be2 {[%emt 0:01:18]} O-O {[%emt 0:02:55]} 8. a3 {[%emt 0:00:38]} a6 {[%emt 0:00:49]} 9. b4 {[%emt 0:03:07]} Bd6 {[%emt 0:00:43]} 10. cxd5 {[%emt 0:00:45]} exd5 {[%emt 0:00:13]} 11. Bb2 {[%emt 0:01:11]} Re8 {[%emt 0:10:41]} 12. O-O {[%emt 0:01:37]} Bg4 {[%emt 0:00:14]} 13. g3 {[%emt 0:04:29]} Bf8 {[%emt 0:05:23]} 14. Rc1 {[%emt 0:08:47]} Qd7 {[%emt 0:04:09]} 15. Na4 {[%emt 0:15:04]} Ne4 {[%emt 0:00:41]} 16. Nb6 {[%emt 0:01:37]} Qd6 {[%emt 0:01:08]} 17. Nxa8 {[%emt 0:04:07]} Rxa8 {[%emt 0:00:01]} 18. Nd2 {[%emt 0:06:35]} Nxd2 {[%emt 0:02:39]} 19. Qxd2 {[%emt 0:00:19]} Be6 {[%emt 0:00:04]} 20. Rfd1 {[%emt 0:00:39]} Rd8 {[%emt 0:00:01]} 21. Bd4 {[%emt 0:01:47]} Qb8 {[%emt 0:02:58]} 22. Bb6 {[%emt 0:02:09]} Rd7 {[%emt 0:00:10]} 23. Bd4 {[%emt 0:01:36]} g6 {[%emt 0:01:16]} 24. Bb2 {[%emt 0:01:37]} Qd8 {[%emt 0:04:20]} 25. b5 {[%emt 0:02:39]} axb5 {[%emt 0:00:45]} 26. Bxb5 {[%emt 0:00:22]} d4 {[%emt 0:00:04]} 27. exd4 {[%emt 0:00:57]} Bb3 {[%emt 0:05:55]} 28. Re1 {[%emt 0:02:34]} Bd5 {[%emt 0:13:25]} 29. Qe3 {[%emt 0:01:00]} Re7 {[%emt 0:04:01]} 30. Qf4 {[%emt 0:00:36]} Qa5 {[%emt 0:05:22]} 31. Rxe7 {[%emt 0:01:28]} Qxb5 {[%emt 0:00:20]} 32. Re8 {[%emt 0:00:38]} Qxb2 {[%emt 0:00:20]} 33. Qh6 {[%emt 0:00:26]} Qxa3 {[%emt 0:00:16]} 34. Rc5 {[%emt 0:02:32]} Qa1+ {[%emt 0:00:05]} 35. Rc1 {[%emt 0:00:02]} Qa3 {[%emt 0:00:04]} 36. Rc5 {[%emt 0:01:26]} Qa1+ {[%emt 0:00:33]} 37. Rc1 {[%emt 0:01:22]} 1/2-1/2